[Event "*** Titled Tuesday Blitz"]
[Site "Chess.com"]
[Date "2019.06.04"]
[Round "4"]
[White "josmito10"]
[Black "TomsKantans"]
[Result "1-0"]
[WhiteElo "2763"]
[BlackElo "2541"]
[TimeControl "180+2"]
[EndTime "13:51:07 PDT"]
[Termination "josmito10 won by resignation"]

1. d4 {[%clk 0:03:01.8]} 1... Nf6 {[%clk 0:03:00.4]} 2. c4 {[%clk 0:03:03]} 2...
g6 {[%clk 0:03:01.5]} 3. Nf3 {[%clk 0:03:03.6]} 3... Bg7 {[%clk 0:03:02.5]} 4.
g3 {[%clk 0:03:04.5]} 4... O-O {[%clk 0:03:03.5]} 5. Bg2 {[%clk 0:03:06.2]} 5...
d5 {[%clk 0:03:04.5]} 6. O-O {[%clk 0:03:04.8]} 6... c5 {[%clk 0:03:05.5]} 7.
cxd5 {[%clk 0:03:04.4]} 7... Qxd5 {[%clk 0:03:04]} 8. Nc3 {[%clk 0:03:05]} 8...
Qh5 {[%clk 0:03:04.9]} 9. dxc5 {[%clk 0:03:02.4]} 9... Nc6 {[%clk 0:03:05.9]}
10. Bg5 {[%clk 0:02:30.7]} 10... Bh3 {[%clk 0:02:59]} 11. Bxf6 {[%clk
0:02:13.1]} 11... Bxf6 {[%clk 0:02:27.3]} 12. Nd5 {[%clk 0:02:13.9]} 12... Bxg2
{[%clk 0:02:19.9]} 13. Kxg2 {[%clk 0:02:07.5]} 13... Bxb2 {[%clk 0:02:04.9]} 14.
Rb1 {[%clk 0:02:05.6]} 14... Rfd8 {[%clk 0:01:46.9]} 15. Rxb2 {[%clk 0:02:06.3]}
15... Rxd5 {[%clk 0:01:45.2]} 16. Qa4 {[%clk 0:01:57]} 16... Rxc5 {[%clk
0:01:20.6]} 17. Rxb7 {[%clk 0:01:57.2]} 17... Qd5 {[%clk 0:01:02.8]} 18. Rd1
{[%clk 0:01:50.2]} 18... Qe6 {[%clk 0:00:55.1]} 19. Rd2 {[%clk 0:01:27.4]} 19...
a5 {[%clk 0:00:46.3]} 20. Qh4 {[%clk 0:01:27.6]} 20... h5 {[%clk 0:00:40.4]} 21.
Rc7 {[%clk 0:01:12.9]} 21... Rc8 {[%clk 0:00:31.5]} 22. Ng5 {[%clk 0:00:38.9]}
22... Rxg5 {[%clk 0:00:08]} 23. Rxc8+ {[%clk 0:00:39.3]} 23... Qxc8 {[%clk
0:00:09.9]} 24. Qxg5 {[%clk 0:00:40.6]} 24... Qb7 {[%clk 0:00:06.5]} 25. Qd5
{[%clk 0:00:40.9]} 25... e6 {[%clk 0:00:06.9]} 26. Qe4 {[%clk 0:00:39.4]} 26...
Qb5 {[%clk 0:00:07]} 27. a4 {[%clk 0:00:32.8]} 27... Qc5 {[%clk 0:00:02.2]} 28.
Rc2 {[%clk 0:00:33.3]} 28... Qb4 {[%clk 0:00:03.7]} 29. Qxc6 {[%clk 0:00:32.9]}
1-0

[Event "*** Titled Tuesday Blitz"]
[Site "Chess.com"]
[Date "2019.06.04"]
[Round "4"]
[White "Borsuk_Konstantin"]
[Black "LiamVrolijk"]
[Result "1/2-1/2"]
[WhiteElo "2601"]
[BlackElo "2737"]
[TimeControl "180+2"]
[EndTime "13:51:10 PDT"]
[Termination "Game drawn - insufficient material"]

1. d4 {[%clk 0:03:01.9]} 1... Nf6 {[%clk 0:03:00.6]} 2. c4 {[%clk 0:03:02.6]}
2... g6 {[%clk 0:03:02]} 3. Nc3 {[%clk 0:03:03.1]} 3... d5 {[%clk 0:03:03.5]} 4.
Nf3 {[%clk 0:03:02.1]} 4... Bg7 {[%clk 0:02:59.1]} 5. Bg5 {[%clk 0:03:02.9]}
5... Ne4 {[%clk 0:02:56.9]} 6. cxd5 {[%clk 0:03:03.4]} 6... Nxg5 {[%clk
0:02:54]} 7. Nxg5 {[%clk 0:03:04.5]} 7... e6 {[%clk 0:02:53.2]} 8. Nf3 {[%clk
0:03:05.5]} 8... exd5 {[%clk 0:02:46.5]} 9. e3 {[%clk 0:03:06.2]} 9... O-O
{[%clk 0:02:47.3]} 10. b4 {[%clk 0:03:06.9]} 10... c6 {[%clk 0:02:42]} 11. Bd3
{[%clk 0:03:03.1]} 11... Bg4 {[%clk 0:02:38.7]} 12. h3 {[%clk 0:03:03.7]} 12...
Bxf3 {[%clk 0:02:39.5]} 13. Qxf3 {[%clk 0:03:04.4]} 13... Nd7 {[%clk 0:02:41.4]}
14. O-O {[%clk 0:03:04]} 14... b5 {[%clk 0:02:36.3]} 15. a4 {[%clk 0:02:59.2]}
15... a6 {[%clk 0:02:37.4]} 16. Ra3 {[%clk 0:02:58.3]} 16... Nb6 {[%clk
0:02:38.2]} 17. Rfa1 {[%clk 0:02:58]} 17... Qd6 {[%clk 0:02:36.6]} 18. Rb3
{[%clk 0:02:38.8]} 18... Nc4 {[%clk 0:02:36.6]} 19. Bxc4 {[%clk 0:02:34.4]}
19... dxc4 {[%clk 0:02:36.1]} 20. Rb2 {[%clk 0:02:31.5]} 20... f5 {[%clk
0:02:36.3]} 21. g3 {[%clk 0:02:28.1]} 21... Rfe8 {[%clk 0:02:32.5]} 22. Kg2
{[%clk 0:02:28.3]} 22... Qd7 {[%clk 0:02:24.4]} 23. axb5 {[%clk 0:02:25.5]}
23... axb5 {[%clk 0:02:25.4]} 24. Rxa8 {[%clk 0:02:25.8]} 24... Rxa8 {[%clk
0:02:26.8]} 25. Nxb5 {[%clk 0:02:26.8]} 25... Rb8 {[%clk 0:02:22.8]} 26. Nc3
{[%clk 0:02:24.5]} 26... Bf8 {[%clk 0:02:23.8]} 27. Na2 {[%clk 0:02:13]} 27...
Qd5 {[%clk 0:02:22.7]} 28. Qxd5+ {[%clk 0:02:12]} 28... cxd5 {[%clk 0:02:24.6]}
29. b5 {[%clk 0:02:04.4]} 29... Kf7 {[%clk 0:02:24.9]} 30. Nc3 {[%clk
0:02:02.4]} 30... Ke6 {[%clk 0:02:25.9]} 31. b6 {[%clk 0:02:03.4]} 31... Rb7
{[%clk 0:02:26.3]} 32. Rb5 {[%clk 0:02:03]} 32... Kd6 {[%clk 0:02:23]} 33. Rxd5+
{[%clk 0:01:44.7]} 33... Kc6 {[%clk 0:02:23.9]} 34. Rb5 {[%clk 0:01:45.9]} 34...
Rxb6 {[%clk 0:02:20.5]} 35. Rxb6+ {[%clk 0:01:37.6]} 35... Kxb6 {[%clk
0:02:22.4]} 36. Kf1 {[%clk 0:01:38.4]} 36... Ka5 {[%clk 0:02:23.8]} 37. Ke2
{[%clk 0:01:39]} 37... Kb4 {[%clk 0:02:25.5]} 38. Nd5+ {[%clk 0:01:11.2]} 38...
Kb3 {[%clk 0:02:26.6]} 39. Kd2 {[%clk 0:01:10.9]} 39... c3+ {[%clk 0:02:25.7]}
40. Nxc3 {[%clk 0:01:05.5]} 40... Bb4 {[%clk 0:02:26.5]} 41. Kd3 {[%clk
0:01:06.2]} 41... Bxc3 {[%clk 0:02:27.9]} 42. f3 {[%clk 0:01:06.8]} 42... Be1
{[%clk 0:02:22.7]} 43. g4 {[%clk 0:01:07.4]} 43... fxg4 {[%clk 0:02:20.5]} 44.
fxg4 {[%clk 0:01:08.4]} 44... Kb4 {[%clk 0:02:21.9]} 45. Ke4 {[%clk 0:01:06.7]}
45... Kb5 {[%clk 0:02:19.8]} 46. Kd5 {[%clk 0:01:03.9]} 46... Kb6 {[%clk
0:02:18.5]} 47. e4 {[%clk 0:01:03.6]} 47... Bf2 {[%clk 0:02:12]} 48. Ke5 {[%clk
0:00:56]} 48... Kc6 {[%clk 0:02:08.3]} 49. d5+ {[%clk 0:00:56.5]} 49... Kd7
{[%clk 0:02:09.8]} 50. Kf6 {[%clk 0:00:56.2]} 50... Kd6 {[%clk 0:02:08.1]} 51.
Kg7 {[%clk 0:00:52.8]} 51... g5 {[%clk 0:02:04.7]} 52. Kxh7 {[%clk 0:00:44.5]}
52... Ke5 {[%clk 0:02:06]} 53. Kg6 {[%clk 0:00:45.5]} 53... Be3 {[%clk
0:02:03.1]} 54. Kh5 {[%clk 0:00:44.2]} 54... Bf4 {[%clk 0:02:03.9]} 55. h4
{[%clk 0:00:41.8]} 55... gxh4 {[%clk 0:02:05.8]} 56. Kxh4 {[%clk 0:00:43]} 56...
Kxe4 {[%clk 0:02:07.7]} 57. g5 {[%clk 0:00:44.2]} 57... Bxg5+ {[%clk 0:02:08.4]}
58. Kxg5 {[%clk 0:00:45]} 58... Kxd5 {[%clk 0:02:10.3]} 1/2-1/2

[Event "*** Titled Tuesday Blitz"]
[Site "Chess.com"]
[Date "2019.06.04"]
[Round "4"]
[White "nitpicker"]
[Black "Jahonas"]
[Result "0-1"]
[WhiteElo "2215"]
[BlackElo "2346"]
[TimeControl "180+2"]
[EndTime "13:51:12 PDT"]
[Termination "Jahonas won on time"]

1. d4 {[%clk 0:03:01.9]} 1... Nf6 {[%clk 0:03:00.5]} 2. c4 {[%clk 0:03:02]} 2...
g6 {[%clk 0:03:01.9]} 3. Nc3 {[%clk 0:03:01.7]} 3... d5 {[%clk 0:03:03]} 4. Nf3
{[%clk 0:03:00.3]} 4... Bg7 {[%clk 0:03:03.4]} 5. Qb3 {[%clk 0:03:01.3]} 5...
dxc4 {[%clk 0:03:03.9]} 6. Qxc4 {[%clk 0:03:02.5]} 6... a6 {[%clk 0:03:02.5]} 7.
e4 {[%clk 0:02:47.6]} 7... O-O {[%clk 0:02:59.4]} 8. e5 {[%clk 0:02:40.4]} 8...
b5 {[%clk 0:02:53]} 9. Qb3 {[%clk 0:02:29.9]} 9... Be6 {[%clk 0:02:43.3]} 10.
Qd1 {[%clk 0:02:27.5]} 10... Nd5 {[%clk 0:02:42.2]} 11. Ne4 {[%clk 0:02:27.9]}
11... Nd7 {[%clk 0:02:33.4]} 12. Be2 {[%clk 0:01:59.7]} 12... Rc8 {[%clk
0:02:29.3]} 13. Nfg5 {[%clk 0:01:49.1]} 13... Bf5 {[%clk 0:02:23.4]} 14. g4
{[%clk 0:01:34.3]} 14... Bxe4 {[%clk 0:02:23.7]} 15. Nxe4 {[%clk 0:01:35.9]}
15... c5 {[%clk 0:02:20.8]} 16. Nxc5 {[%clk 0:01:26.2]} 16... Nxc5 {[%clk
0:02:20.5]} 17. dxc5 {[%clk 0:01:27.2]} 17... Bxe5 {[%clk 0:02:18.2]} 18. Bf3
{[%clk 0:01:19.4]} 18... Rxc5 {[%clk 0:02:06.3]} 19. O-O {[%clk 0:01:16.1]}
19... Nf4 {[%clk 0:02:01.5]} 20. Qb3 {[%clk 0:00:41.3]} 20... e6 {[%clk
0:01:51.9]} 21. Be3 {[%clk 0:00:40.4]} 21... Qh4 {[%clk 0:01:21.9]} 22. Rfe1
{[%clk 0:00:24]} 22... Rc4 {[%clk 0:00:42.8]} 23. Bb6 {[%clk 0:00:19.9]} 23...
Bb8 {[%clk 0:00:30.2]} 24. a4 {[%clk 0:00:19.8]} 24... Nd5 {[%clk 0:00:28.8]}
25. Bxd5 {[%clk 0:00:17.8]} 25... Qxh2+ {[%clk 0:00:28.2]} 26. Kf1 {[%clk
0:00:18.1]} 26... exd5 {[%clk 0:00:28.4]} 27. axb5 {[%clk 0:00:18.2]} 27... Qh1+
{[%clk 0:00:20.4]} 28. Ke2 {[%clk 0:00:19.2]} 28... Re8+ {[%clk 0:00:21.1]} 29.
Kd2 {[%clk 0:00:18.2]} 29... Bf4+ {[%clk 0:00:20]} 30. Kd3 {[%clk 0:00:17]}
30... Rxe1 {[%clk 0:00:19.6]} 0-1

[Event "*** Titled Tuesday Blitz"]
[Site "Chess.com"]
[Date "2019.06.04"]
[Round "4"]
[White "Alliswell998"]
[Black "PowerThinking2650"]
[Result "1-0"]
[WhiteElo "2414"]
[BlackElo "2356"]
[TimeControl "180+2"]
[EndTime "13:51:14 PDT"]
[Termination "Alliswell998 won by checkmate"]

1. e4 {[%clk 0:03:00.5]} 1... e5 {[%clk 0:03:00.3]} 2. Nf3 {[%clk 0:02:58]} 2...
Nc6 {[%clk 0:03:01.3]} 3. Bc4 {[%clk 0:02:57.4]} 3... Nf6 {[%clk 0:03:01.5]} 4.
d3 {[%clk 0:02:57.7]} 4... h6 {[%clk 0:03:01.9]} 5. c3 {[%clk 0:02:55.5]} 5...
d6 {[%clk 0:03:01.1]} 6. Bb3 {[%clk 0:02:56]} 6... g6 {[%clk 0:03:01.6]} 7. h3
{[%clk 0:02:55.7]} 7... Bg7 {[%clk 0:03:02.3]} 8. Nbd2 {[%clk 0:02:56.3]} 8...
O-O {[%clk 0:03:02]} 9. Nf1 {[%clk 0:02:54.4]} 9... Na5 {[%clk 0:02:51.3]} 10.
Bc2 {[%clk 0:02:54.5]} 10... c5 {[%clk 0:02:52.6]} 11. Qe2 {[%clk 0:02:46]}
11... Nh5 {[%clk 0:02:46.7]} 12. g3 {[%clk 0:02:41.7]} 12... Nc6 {[%clk
0:02:34.5]} 13. Ne3 {[%clk 0:02:40.2]} 13... f5 {[%clk 0:02:31.3]} 14. Nh4
{[%clk 0:02:21.2]} 14... Nf4 {[%clk 0:02:13.3]} 15. Qf3 {[%clk 0:02:02.5]} 15...
fxe4 {[%clk 0:02:10.8]} 16. Qxe4 {[%clk 0:02:00]} 16... d5 {[%clk 0:02:01.9]}
17. Qa4 {[%clk 0:01:56.6]} 17... Be6 {[%clk 0:01:36.6]} 18. Bd2 {[%clk
0:01:50.4]} 18... g5 {[%clk 0:01:36.5]} 19. gxf4 {[%clk 0:01:44]} 19... gxf4
{[%clk 0:01:32.5]} 20. Neg2 {[%clk 0:01:33.7]} 20... f3 {[%clk 0:01:26.7]} 21.
Ne3 {[%clk 0:01:34.3]} 21... d4 {[%clk 0:01:25.7]} 22. Bb3 {[%clk 0:01:03.5]}
22... Qd7 {[%clk 0:01:04.9]} 23. Nef5 {[%clk 0:00:58.2]} 23... Kh7 {[%clk
0:00:57.3]} 24. Nxg7 {[%clk 0:00:56.8]} 24... Kxg7 {[%clk 0:00:57.1]} 25. O-O-O
{[%clk 0:00:54.9]} 25... Bxb3 {[%clk 0:00:26]} 26. Qxb3 {[%clk 0:00:54.3]} 26...
Na5 {[%clk 0:00:20.8]} 27. Rhg1+ {[%clk 0:00:54.5]} 27... Kh7 {[%clk 0:00:21.3]}
28. Qa3 {[%clk 0:00:46]} 28... b5 {[%clk 0:00:22.1]} 29. Qxa5 {[%clk 0:00:45.2]}
29... Rab8 {[%clk 0:00:20.5]} 30. Ng6 {[%clk 0:00:38.7]} 30... Rf5 {[%clk
0:00:19]} 31. Rde1 {[%clk 0:00:28.8]} 31... Re8 {[%clk 0:00:15]} 32. Qa6 {[%clk
0:00:28.8]} 32... dxc3 {[%clk 0:00:14.1]} 33. Nf8+ {[%clk 0:00:25.9]} 33...
Rexf8 {[%clk 0:00:14.5]} 34. Qxh6# {[%clk 0:00:26.5]} 1-0

[Event "*** Titled Tuesday Blitz"]
[Site "Chess.com"]
[Date "2019.06.04"]
[Round "4"]
[White "jmduque"]
[Black "Aknok"]
[Result "0-1"]
[WhiteElo "2374"]
[BlackElo "2425"]
[TimeControl "180+2"]
[EndTime "13:51:19 PDT"]
[Termination "Aknok won on time"]

1. e4 {[%clk 0:02:56.7]} 1... e6 {[%clk 0:02:59.7]} 2. d4 {[%clk 0:02:57.1]}
2... d5 {[%clk 0:03:00.6]} 3. Nc3 {[%clk 0:02:56.8]} 3... Bb4 {[%clk 0:03:01.3]}
4. a3 {[%clk 0:02:55.3]} 4... Bxc3+ {[%clk 0:03:00.2]} 5. bxc3 {[%clk
0:02:56.2]} 5... dxe4 {[%clk 0:03:02.1]} 6. Qg4 {[%clk 0:02:56.9]} 6... Nf6
{[%clk 0:03:03]} 7. Qxg7 {[%clk 0:02:57.7]} 7... Rg8 {[%clk 0:03:04.2]} 8. Qh6
{[%clk 0:02:58.5]} 8... Rg6 {[%clk 0:03:05.8]} 9. Qh4 {[%clk 0:02:57.1]} 9... c5
{[%clk 0:03:05.6]} 10. Ne2 {[%clk 0:02:46.1]} 10... Nbd7 {[%clk 0:03:04]} 11.
Bg5 {[%clk 0:02:40.4]} 11... Qa5 {[%clk 0:02:56.5]} 12. Bd2 {[%clk 0:02:27.7]}
12... Qa4 {[%clk 0:02:47.7]} 13. Nf4 {[%clk 0:02:19]} 13... Rg4 {[%clk
0:02:47.3]} 14. Qh3 {[%clk 0:02:20]} 14... cxd4 {[%clk 0:02:22.8]} 15. cxd4
{[%clk 0:02:16.5]} 15... Qxd4 {[%clk 0:02:19.5]} 16. c3 {[%clk 0:02:09.1]} 16...
Qe5 {[%clk 0:02:06.2]} 17. g3 {[%clk 0:01:48]} 17... Nc5 {[%clk 0:01:51.6]} 18.
Be2 {[%clk 0:01:41.6]} 18... Nd3+ {[%clk 0:01:33.4]} 19. Kf1 {[%clk 0:01:41.3]}
19... Nxf4 {[%clk 0:01:09.2]} 20. gxf4 {[%clk 0:01:34.7]} 20... Qf5 {[%clk
0:01:09.9]} 21. Bxg4 {[%clk 0:01:33.7]} 21... Nxg4 {[%clk 0:01:11.8]} 22. Rg1
{[%clk 0:01:31.5]} 22... h5 {[%clk 0:01:11.5]} 23. Qh4 {[%clk 0:01:21.8]} 23...
b6 {[%clk 0:01:03]} 24. h3 {[%clk 0:01:19.2]} 24... Nh2+ {[%clk 0:00:51.3]} 25.
Ke2 {[%clk 0:01:05.1]} 25... Ba6+ {[%clk 0:00:28.9]} 26. c4 {[%clk 0:01:05]}
26... Bxc4+ {[%clk 0:00:27]} 27. Kd1 {[%clk 0:01:02.5]} 27... Bb3+ {[%clk
0:00:27.3]} 28. Ke2 {[%clk 0:00:45.3]} 28... Qb5+ {[%clk 0:00:27.6]} 0-1

[Event "*** Titled Tuesday Blitz"]
[Site "Chess.com"]
[Date "2019.06.04"]
[Round "4"]
[White "Gabix_94"]
[Black "rasmussvane"]
[Result "0-1"]
[WhiteElo "2649"]
[BlackElo "2877"]
[TimeControl "180+2"]
[EndTime "13:51:23 PDT"]
[Termination "rasmussvane won by resignation"]

1. Nf3 {[%clk 0:03:01.9]} 1... d5 {[%clk 0:03:00.4]} 2. g3 {[%clk 0:03:01.2]}
2... g6 {[%clk 0:03:01.5]} 3. Bg2 {[%clk 0:03:02.3]} 3... Bg7 {[%clk 0:03:03]}
4. d4 {[%clk 0:03:01.3]} 4... Nf6 {[%clk 0:03:04.2]} 5. O-O {[%clk 0:03:01.7]}
5... O-O {[%clk 0:03:05.4]} 6. c4 {[%clk 0:03:02.9]} 6... dxc4 {[%clk
0:03:06.7]} 7. Na3 {[%clk 0:03:03.7]} 7... c5 {[%clk 0:03:06.2]} 8. dxc5 {[%clk
0:02:52.3]} 8... c3 {[%clk 0:03:07]} 9. Qb3 {[%clk 0:02:50.5]} 9... cxb2 {[%clk
0:02:48.4]} 10. Bxb2 {[%clk 0:02:52.4]} 10... Nc6 {[%clk 0:02:50.1]} 11. Rfd1
{[%clk 0:02:49.7]} 11... Qa5 {[%clk 0:02:50.7]} 12. Rac1 {[%clk 0:02:46.3]}
12... Rb8 {[%clk 0:02:45]} 13. Nd4 {[%clk 0:02:44.1]} 13... Nxd4 {[%clk
0:02:42]} 14. Bxd4 {[%clk 0:02:46]} 14... Be6 {[%clk 0:02:43.2]} 15. Qb2 {[%clk
0:02:45.5]} 15... b5 {[%clk 0:01:51.2]} 16. Be5 {[%clk 0:02:32.5]} 16... Nh5
{[%clk 0:01:40.7]} 17. Bxg7 {[%clk 0:02:26.2]} 17... Nxg7 {[%clk 0:01:42.6]} 18.
c6 {[%clk 0:02:27.2]} 18... Rfc8 {[%clk 0:01:40.8]} 19. Rc5 {[%clk 0:02:18.2]}
19... a6 {[%clk 0:01:39.8]} 20. Qc1 {[%clk 0:02:10.8]} 20... Rc7 {[%clk
0:01:33]} 21. Nc2 {[%clk 0:02:08.2]} 21... Qxa2 {[%clk 0:01:20.4]} 22. Nb4
{[%clk 0:02:01.2]} 22... Qa5 {[%clk 0:01:16.4]} 23. Qf4 {[%clk 0:01:50.6]} 23...
Rbc8 {[%clk 0:01:11.8]} 24. h4 {[%clk 0:01:50.2]} 24... h5 {[%clk 0:01:09]} 25.
Qd4 {[%clk 0:01:37]} 25... Bb3 {[%clk 0:00:43.5]} 26. Ra1 {[%clk 0:01:35.8]}
26... Ne6 {[%clk 0:00:43.9]} 27. Rxa5 {[%clk 0:01:35]} 27... Nxd4 {[%clk
0:00:44.1]} 28. Nxa6 {[%clk 0:01:35.5]} 28... Ra7 {[%clk 0:00:31.9]} 29. e3
{[%clk 0:01:35.3]} 29... Ne6 {[%clk 0:00:25.7]} 30. Rcxb5 {[%clk 0:01:35]} 30...
Bc4 {[%clk 0:00:27]} 31. Rb6 {[%clk 0:01:33.9]} 31... Nc7 {[%clk 0:00:15.7]} 32.
Bf1 {[%clk 0:01:25.1]} 32... Bxa6 {[%clk 0:00:15.9]} 33. Bxa6 {[%clk 0:01:17.1]}
33... Rca8 {[%clk 0:00:16.8]} 34. Rb7 {[%clk 0:01:17.9]} 34... Rxa6 {[%clk
0:00:17.1]} 35. Re5 {[%clk 0:01:13.6]} 35... Rxc6 {[%clk 0:00:17.1]} 36. Rxe7
{[%clk 0:01:14.8]} 36... Rc8 {[%clk 0:00:18.6]} 37. Kg2 {[%clk 0:01:16.3]} 37...
Kf8 {[%clk 0:00:19.7]} 38. Rd7 {[%clk 0:01:17.8]} 38... Ke8 {[%clk 0:00:20.8]}
39. Rd1 {[%clk 0:01:19.2]} 39... Rd8 {[%clk 0:00:19.9]} 40. Ra1 {[%clk
0:01:18.9]} 40... Rd7 {[%clk 0:00:19.6]} 41. Raa7 {[%clk 0:01:19.6]} 41... Ke7
{[%clk 0:00:19.7]} 42. Kf3 {[%clk 0:01:21]} 42... Rc2 {[%clk 0:00:18.5]} 43. Ke4
{[%clk 0:01:20.7]} 43... Kd6 {[%clk 0:00:17.1]} 44. f3 {[%clk 0:01:19.3]} 44...
Re7+ {[%clk 0:00:18.1]} 45. Kf4 {[%clk 0:01:20.2]} 45... Ne6+ {[%clk 0:00:16.7]}
46. Ke4 {[%clk 0:01:20]} 46... Rxb7 {[%clk 0:00:16.9]} 47. Rxb7 {[%clk
0:01:21.9]} 47... Nc5+ {[%clk 0:00:18.1]} 0-1

[Event "*** Titled Tuesday Blitz"]
[Site "Chess.com"]
[Date "2019.06.04"]
[Round "4"]
[White "KNVB"]
[Black "Dr-Bassem"]
[Result "0-1"]
[WhiteElo "2708"]
[BlackElo "2853"]
[TimeControl "180+2"]
[EndTime "13:51:30 PDT"]
[Termination "Dr-Bassem won by resignation"]

1. c4 {[%clk 0:03:01.9]} 1... f5 {[%clk 0:02:57.8]} 2. d4 {[%clk 0:02:59.6]}
2... Nf6 {[%clk 0:02:59.1]} 3. h4 {[%clk 0:02:59.6]} 3... e6 {[%clk 0:02:58.7]}
4. g3 {[%clk 0:03:01.1]} 4... Bb4+ {[%clk 0:02:57.8]} 5. Bd2 {[%clk 0:02:47.3]}
5... Qe7 {[%clk 0:02:57.2]} 6. Bg2 {[%clk 0:02:45.6]} 6... O-O {[%clk
0:02:57.8]} 7. Nh3 {[%clk 0:02:26.1]} 7... Nc6 {[%clk 0:02:53.4]} 8. O-O {[%clk
0:02:23.5]} 8... Bxd2 {[%clk 0:02:41.6]} 9. Qxd2 {[%clk 0:02:22.3]} 9... d6
{[%clk 0:02:40.3]} 10. d5 {[%clk 0:02:16.1]} 10... Ne5 {[%clk 0:02:38.6]} 11. b3
{[%clk 0:02:15.3]} 11... c6 {[%clk 0:02:24.1]} 12. Nc3 {[%clk 0:02:10.9]} 12...
exd5 {[%clk 0:02:25.2]} 13. cxd5 {[%clk 0:02:12.8]} 13... c5 {[%clk 0:02:26.5]}
14. Nf4 {[%clk 0:02:05.2]} 14... Bd7 {[%clk 0:02:24.6]} 15. a4 {[%clk
0:01:42.9]} 15... Rfe8 {[%clk 0:02:02.8]} 16. Rfe1 {[%clk 0:01:41.2]} 16... Rab8
{[%clk 0:01:44.6]} 17. e4 {[%clk 0:01:15]} 17... fxe4 {[%clk 0:01:40.4]} 18.
Nxe4 {[%clk 0:01:16.9]} 18... Nxe4 {[%clk 0:01:39.8]} 19. Rxe4 {[%clk
0:01:18.8]} 19... Bf5 {[%clk 0:01:30.5]} 20. Re3 {[%clk 0:01:13.6]} 20... b5
{[%clk 0:00:57.4]} 21. axb5 {[%clk 0:01:05.5]} 21... Rxb5 {[%clk 0:00:59.3]} 22.
Ne6 {[%clk 0:00:42.2]} 22... Bxe6 {[%clk 0:00:44.9]} 23. dxe6 {[%clk 0:00:44.1]}
23... c4 {[%clk 0:00:46.4]} 24. Qd4 {[%clk 0:00:15.6]} 24... cxb3 {[%clk
0:00:43.5]} 25. Rb1 {[%clk 0:00:04.2]} 25... Reb8 {[%clk 0:00:34.9]} 26. Bd5
{[%clk 0:00:05.5]} 26... a5 {[%clk 0:00:32.8]} 27. Kg2 {[%clk 0:00:02.8]} 27...
a4 {[%clk 0:00:32.9]} 28. f4 {[%clk 0:00:03.4]} 28... Ng4 {[%clk 0:00:33.1]} 29.
Rc3 {[%clk 0:00:04.3]} 29... Nf6 {[%clk 0:00:27.5]} 30. Bc4 {[%clk 0:00:03.9]}
30... Rc5 {[%clk 0:00:22.4]} 31. Qd3 {[%clk 0:00:03]} 31... Rbc8 {[%clk
0:00:22.2]} 32. Rbc1 {[%clk 0:00:03.2]} 32... b2 {[%clk 0:00:23]} 33. Re1 {[%clk
0:00:03.7]} 33... d5 {[%clk 0:00:23.6]} 34. Ba2 {[%clk 0:00:02.4]} 34... Rxc3
{[%clk 0:00:24.1]} 0-1

[Event "*** Titled Tuesday Blitz"]
[Site "Chess.com"]
[Date "2019.06.04"]
[Round "4"]
[White "mikhaillushenkov"]
[Black "ChainsOfFantasia"]
[Result "1-0"]
[WhiteElo "2726"]
[BlackElo "2502"]
[TimeControl "180+2"]
[EndTime "13:51:30 PDT"]
[Termination "mikhaillushenkov won by resignation"]

1. Nf3 {[%clk 0:03:01.9]} 1... Nf6 {[%clk 0:02:57.6]} 2. c4 {[%clk 0:03:03.1]}
2... e6 {[%clk 0:02:58.7]} 3. Nc3 {[%clk 0:03:02]} 3... d5 {[%clk 0:03:00.6]} 4.
d4 {[%clk 0:03:02.7]} 4... dxc4 {[%clk 0:03:00.6]} 5. e3 {[%clk 0:03:03.6]} 5...
c5 {[%clk 0:02:59.1]} 6. Bxc4 {[%clk 0:03:03.9]} 6... a6 {[%clk 0:02:59.7]} 7.
Bd3 {[%clk 0:03:00.6]} 7... Nc6 {[%clk 0:02:59.3]} 8. O-O {[%clk 0:02:56.9]}
8... Be7 {[%clk 0:02:53.2]} 9. a3 {[%clk 0:02:55.6]} 9... O-O {[%clk 0:02:48.5]}
10. Bc2 {[%clk 0:02:55.2]} 10... cxd4 {[%clk 0:02:47.5]} 11. exd4 {[%clk
0:02:55.9]} 11... b5 {[%clk 0:02:42]} 12. Bg5 {[%clk 0:02:53]} 12... h6 {[%clk
0:02:38.9]} 13. Bh4 {[%clk 0:02:53.3]} 13... Bb7 {[%clk 0:02:37.4]} 14. Qd3
{[%clk 0:02:48]} 14... g6 {[%clk 0:02:38.5]} 15. Rfe1 {[%clk 0:02:47.5]} 15...
Nd5 {[%clk 0:02:34.8]} 16. Bg3 {[%clk 0:02:41.8]} 16... Bf6 {[%clk 0:02:30.5]}
17. Rxe6 {[%clk 0:02:32.7]} 17... Ncb4 {[%clk 0:01:39.8]} 18. axb4 {[%clk
0:02:26]} 18... Nxb4 {[%clk 0:01:41.7]} 19. Qd2 {[%clk 0:02:15.7]} 19... Nxc2
{[%clk 0:01:41.3]} 20. Rd6 {[%clk 0:02:13.3]} 20... Nxa1 {[%clk 0:01:12.8]} 21.
Rxd8 {[%clk 0:02:12.6]} 21... Raxd8 {[%clk 0:01:12.3]} 22. Qd1 {[%clk
0:02:03.6]} 22... Bxf3 {[%clk 0:01:01.8]} 23. gxf3 {[%clk 0:02:02.8]} 23... Rxd4
{[%clk 0:00:47]} 24. Qxa1 {[%clk 0:02:02.9]} 24... h5 {[%clk 0:00:48.4]} 25.
Qxa6 {[%clk 0:02:02.2]} 25... Bg7 {[%clk 0:00:47.8]} 26. Qxb5 {[%clk 0:01:58.5]}
26... h4 {[%clk 0:00:48.8]} 27. Be5 {[%clk 0:01:57.1]} 27... Bxe5 {[%clk
0:00:42.7]} 28. Qxe5 {[%clk 0:01:59]} 28... Rfd8 {[%clk 0:00:42.7]} 29. Kg2
{[%clk 0:01:53.9]} 29... Rd2 {[%clk 0:00:42.8]} 30. Ne4 {[%clk 0:01:53.4]} 30...
Rc2 {[%clk 0:00:39.5]} 31. Nf6+ {[%clk 0:01:51.3]} 31... Kf8 {[%clk 0:00:35.6]}
32. Nd5 {[%clk 0:01:36.4]} 32... Kg8 {[%clk 0:00:31.1]} 33. Ne7+ {[%clk
0:01:36.7]} 33... Kh7 {[%clk 0:00:29.8]} 34. Qf4 {[%clk 0:01:32.4]} 34... h3+
{[%clk 0:00:26.9]} 35. Kxh3 {[%clk 0:01:30.5]} 35... Kg7 {[%clk 0:00:25.8]} 36.
Kg3 {[%clk 0:01:26.7]} 36... Rdd2 {[%clk 0:00:25.6]} 37. Qe5+ {[%clk 0:01:21.9]}
37... f6 {[%clk 0:00:25.7]} 38. Qe4 {[%clk 0:01:22.1]} 38... Rxf2 {[%clk
0:00:26.1]} 39. Qxg6+ {[%clk 0:01:22.6]} 39... Kf8 {[%clk 0:00:28]} 40. Qxf6+
{[%clk 0:01:23.8]} 40... Ke8 {[%clk 0:00:29.1]} 41. Nf5 {[%clk 0:01:20.3]} 41...
Rg2+ {[%clk 0:00:28.2]} 42. Kf4 {[%clk 0:01:19.9]} 42... Kd7 {[%clk 0:00:28.6]}
43. Qd6+ {[%clk 0:01:17.9]} 43... Kc8 {[%clk 0:00:29.4]} 44. Ne7+ {[%clk
0:01:16.9]} 44... Kb7 {[%clk 0:00:30.2]} 45. Qb4+ {[%clk 0:01:16.9]} 45... Kc7
{[%clk 0:00:29.8]} 46. Nd5+ {[%clk 0:01:17.6]} 46... Kd7 {[%clk 0:00:28.3]} 47.
Ne3 {[%clk 0:01:14.4]} 47... Rxb2 {[%clk 0:00:29]} 48. Qd4+ {[%clk 0:01:14]}
48... Ke6 {[%clk 0:00:30.2]} 49. Nxg2 {[%clk 0:01:15.2]} 49... Rxg2 {[%clk
0:00:32]} 50. h4 {[%clk 0:01:15.8]} 50... Rd2 {[%clk 0:00:31.1]} 1-0